bitfinex/quotes_ETHUSD_20260202
["timestamp","ask_amount","ask_price","bid_price","bid_amount"]
[1770061480738,12.99305672,2343.9,2343.0,6.38089974]
[1770061480938,12.99305672,2343.9,2343.2,1.06690879]
[1770061481113,14.29247239,2344.0,2343.2,1.06691652]
[1770061482235,14.05965512,2343.9,2343.0,1.21787018]
[1770061482538,14.05965512,2343.9,2342.9,1.96202408]
[1770061482720,14.05965512,2343.9,2343.0,1.06700781]
[1770061483528,14.05965512,2343.9,2342.9,1.96202389]
[1770061483930,14.05965512,2343.9,2343.0,1.06697214]
[1770061484520,14.05965512,2343.9,2343.2,0.001]
[1770061484854,1.96253684,2343.8,2343.2,0.001]
[1770061485024,1.0676984,2343.9,2343.2,0.001]
[1770061486113,4.26749361,2344.1,2343.3,12.17870175]
[1770061486114,0.0011,2344.1,2343.3,12.17870175]
[1770061486318,0.0008024,2344.6,2343.9,13.26350623]
[1770061486561,0.0008024,2344.6,2344.0,0.895]
[1770061487827,0.44191195,2344.8,2344.4,0.01710608]
[1770061488053,0.0019072,2345.1,2344.4,0.01710608]
[1770061488362,0.0019072,2345.1,2344.4,1.23668686]
[1770061488753,0.0019072,2345.1,2344.4,1.21958078]
[1770061488954,12.99496392,2345.1,2344.4,1.06635107]
[1770061489961,12.99496392,2345.1,2344.2,1.06644291]
[1770061490163,12.99496392,2345.1,2344.3,1.06640973]
[1770061490672,12.99496392,2345.1,2344.4,1.06636521]
[1770061490970,1.29949639,2345.0,2344.1,1.0665074]
[1770061491140,0.0019072,2345.1,2344.1,13.72552951]
[1770061491340,1.06796498,2345.1,2344.1,13.72552951]
[1770061492266,12.63149694,2345.0,2344.1,1.0665074]
[1770061492843,13.69764048,2344.9,2344.0,4.2660296]
[1770061493050,12.63149694,2344.9,2344.0,4.2660296]
[1770061493250,1.2571775,2344.9,2344.1,0.94263952]
[1770061493472,1.06610278,2345.0,2344.1,0.94263952]
[1770061493672,13.69759972,2345.0,2344.1,0.94263952]
[1770061494072,12.63149694,2345.0,2344.1,0.94263952]
[1770061494239,1.06796373,2345.1,2344.1,0.94263952]
[1770061494440,0.0019072,2345.1,2344.1,13.60166163]
[1770061494637,0.0019072,2345.1,2344.2,1.78676912]
[1770061494939,0.0019072,2345.1,2344.3,1.06641641]
[1770061496246,12.63340414,2345.1,2344.3,1.06641641]
[1770061497277,13.69949798,2345.1,2344.2,4.26566565]
[1770061497774,13.69949798,2345.1,2344.3,0.001]
[1770061497946,14.42785731,2345.0,2344.3,0.001]
[1770061498147,0.0011,2344.9,2344.3,0.001]
[1770061500674,12.63259694,2344.9,2344.3,0.001]
[1770061501905,12.63259694,2344.9,2344.0,0.001]
[1770061502047,12.63149694,2344.7,2344.0,0.001]
[1770061502358,1.06632544,2344.5,2344.0,0.001]
[1770061502699,13.69782238,2344.5,2344.0,0.001]
[1770061503350,13.69782238,2344.5,2343.3,0.894]
[1770061503564,12.63149694,2344.3,2343.3,1.96086036]
[1770061504456,12.63149694,2344.1,2343.3,1.96086036]
[1770061504779,14.42787759,2344.1,2343.3,2.58391154]
[1770061505191,12.63149694,2344.4,2343.4,0.01710608]
[1770061505497,1.06640539,2344.4,2343.4,12.67612819]
[1770061505786,12.63259694,2344.9,2344.0,0.01710608]
[1770061506093,1.06725034,2344.9,2344.0,12.67612819]
[1770061506386,14.23208409,2344.9,2344.1,1.26761282]
[1770061506680,14.23208409,2344.9,2343.9,1.0665984]
[1770061509156,0.0011,2344.9,2344.3,12.67612819]
[1770061509368,0.0011,2344.9,2344.0,0.894]
[1770061509883,13.69874817,2344.9,2343.9,1.0665984]
[1770061510194,0.0011,2344.9,2343.8,13.74273735]
[1770061510397,0.0011,2344.9,2343.9,14.45995893]
[1770061510686,0.0011,2344.9,2344.1,0.01710608]
[1770061510858,0.0011,2344.9,2344.2,1.0664619]
[1770061511061,0.0011,2344.7,2344.2,1.0664619]
[1770061511256,0.0011,2344.7,2344.3,0.53504156]
[1770061513285,0.0011,2344.7,2344.4,1.06637092]
[1770061514183,0.0011,2344.7,2344.3,0.53504156]
[1770061514389,0.0011,2344.7,2344.3,1.60145676]
[1770061514567,0.0011,2344.7,2344.3,1.60143217]
[1770061514966,12.63149694,2344.6,2343.9,0.001]
[1770061515172,14.81361991,2344.5,2343.9,0.001]
[1770061515485,1.9852342,2344.4,2343.9,0.001]
[1770061515655,1.06637092,2344.4,2343.9,0.001]
[1770061515859,1.06637092,2344.4,2343.4,1.06682597]
[1770061515860,13.69786786,2344.4,2343.4,1.06682597]
[1770061516059,13.55089975,2344.3,2343.4,1.06682597]
[1770061516260,2.38112988,2344.2,2343.4,1.06682597]
[1770061516468,1.46172707,2344.2,2343.4,13.72584808]
[1770061516690,1.06637092,2344.4,2343.4,13.72584808]
[1770061516891,0.91959025,2344.3,2343.4,13.74295416]
[1770061517093,1.06637092,2344.4,2343.4,13.74295416]
[1770061517390,0.9195905,2344.3,2343.4,13.74295416]
[1770061517587,1.06637092,2344.4,2343.4,13.74295416]
[1770061517791,0.91944511,2344.3,2343.5,1.86334783]
[1770061517994,1.26325969,2344.5,2343.7,12.65902211]
[1770061518191,1.06631658,2344.6,2343.7,12.65902211]
[1770061518387,0.91940495,2344.5,2343.7,12.65902211]
[1770061518695,1.06631658,2344.6,2343.7,12.65902211]
[1770061518871,0.0011,2344.7,2343.8,12.67612819]
[1770061519071,0.91937719,2344.6,2343.9,1.26761282]
[1770061519302,1.06733825,2344.7,2343.9,1.26761282]
[1770061519474,0.91939223,2344.6,2343.7,12.65902211]
[1770061519798,0.0011,2344.7,2343.8,12.67612819]
[1770061520093,1.06733775,2344.7,2343.8,12.65902211]
[1770061522896,12.77074686,2344.5,2343.5,1.86334783]
[1770061523098,12.77074686,2344.5,2343.7,1.06666713]
[1770061523395,12.77074686,2344.5,2343.8,1.06664024]
[1770061523799,0.0011,2344.7,2343.8,1.06664024]
[1770061523969,0.91954158,2344.6,2343.8,1.06664024]
[1770061524164,0.91954158,2344.5,2343.8,1.59997779]
[1770061524997,1.06632544,2344.5,2344.0,0.001]
[1770061525193,1.06742544,2344.5,2344.0,0.001]
[1770061525504,0.0011,2344.5,2344.0,0.001]
[1770061533005,0.0011,2344.7,2344.2,1.0664619]
[1770061533211,0.0011,2344.7,2344.3,1.83332879]
[1770061534996,13.6898212,2344.6,2344.0,0.001]
[1770061535199,14.75614664,2344.5,2344.0,0.001]
[1770061535378,0.91909945,2344.4,2344.0,0.001]
[1770061535579,13.8370723,2344.5,2343.8,0.001]
[1770061535779,12.77074686,2344.3,2343.8,0.001]
[1770061536009,14.24633937,2344.3,2343.8,0.001]
[1770061536415,1.47559251,2344.3,2343.8,1.0676363]
[1770061536574,13.8370723,2344.5,2343.8,1.0676363]
[1770061536779,0.91855936,2344.4,2343.8,1.0676363]
[1770061537004,4.26517929,2344.6,2343.8,1.0676363]
[1770061537005,1.06631594,2344.6,2343.8,1.0676363]
[1770061537210,0.91838816,2344.5,2343.8,12.98487227]
[1770061537398,1.06631594,2344.6,2343.8,12.98487227]
[1770061537713,0.91825079,2344.5,2343.8,1.83454184]
[1770061537906,13.8370628,2344.6,2343.8,0.001]
[1770061538113,0.91810743,2344.5,2343.8,0.001]
[1770061538410,13.8370628,2344.6,2344.0,0.001]
[1770061538578,0.91926683,2344.5,2344.0,0.001]
[1770061538777,0.0011,2344.5,2344.0,0.001]
[1770061538978,2.01465064,2344.5,2344.0,0.001]
[1770061539713,3.08100229,2344.5,2344.0,0.001]
[1770061539908,0.0011,2344.5,2344.0,0.001]
[1770061541307,1.06742564,2344.5,2344.0,0.001]
[1770061541676,0.0011,2344.5,2344.0,0.001]
[1770061542123,0.0011,2344.5,2343.4,0.894]
[1770061542124,13.68822414,2344.4,2343.0,0.001]
[1770061542340,12.77074686,2344.2,2343.4,1.0668254]
[1770061542510,2.40002383,2344.1,2343.4,1.0668254]
[1770061542810,1.48254655,2344.1,2343.4,1.0668254]
[1770061543119,0.91707368,2344.0,2343.3,1.06686339]
[1770061543284,1.48254655,2344.1,2343.3,1.06686339]
[1770061543285,14.25329341,2344.1,2343.3,1.06686339]
[1770061543485,0.91707148,2344.0,2343.3,1.06686339]
[1770061543712,2.20369379,2344.3,2343.2,12.98487227]
[1770061544013,0.91675017,2344.2,2343.2,12.98487227]
[1770061544183,0.91675017,2344.1,2343.2,12.98487227]
[1770061544380,1.06645241,2344.3,2343.3,13.00097835]
[1770061544584,0.91678033,2344.2,2343.3,13.00097835]
[1770061544903,0.91678033,2344.1,2343.4,1.30019784]
[1770061545206,1.06645241,2344.3,2343.4,1.30019784]
[1770061545379,0.91668241,2344.2,2343.4,1.30019784]
[1770061545581,0.91668241,2344.1,2343.4,1.30019784]
[1770061545782,1.06645241,2344.3,2343.5,2.49518746]
[1770061545990,0.91668052,2344.2,2343.5,2.49518746]
[1770061546295,1.06645241,2344.3,2343.5,2.49518746]
[1770061546485,0.9166918,2344.2,2343.5,2.49518746]
[1770061546686,1.06645241,2344.3,2343.5,2.49518746]
[1770061546887,2.84074758,2344.2,2343.5,2.49518746]
[1770061547086,1.92400777,2344.2,2343.5,2.49518746]
[1770061547989,1.06645241,2344.3,2343.5,2.49518746]
[1770061547990,12.77074686,2344.4,2343.5,2.49518746]
[1770061548186,0.91667426,2344.3,2343.5,15.49616581]
[1770061548391,0.0011,2344.5,2343.5,15.49616581]
[1770061548614,0.91680233,2344.4,2343.5,15.49616581]
[1770061548921,0.0011,2344.5,2343.6,14.96021903]
[1770061549215,0.9160935,2344.4,2343.6,14.96021903]
[1770061549403,0.0011,2344.5,2343.6,14.96021903]
[1770061549605,0.91570665,2344.4,2343.6,14.96021903]
[1770061549810,0.0011,2344.5,2343.6,14.96021903]
[1770061550019,0.91567897,2344.4,2343.7,1.74725126]
[1770061550222,0.0011,2344.5,2343.8,1.06664391]
[1770061550515,0.91563023,2344.4,2343.8,1.06664391]
[1770061550717,0.0011,2344.5,2343.8,1.06664391]
[1770061550918,0.91555334,2344.4,2343.8,1.06664391]
[1770061551211,0.0011,2344.2,2343.9,0.70814708]
[1770061553419,13.17069876,2344.1,2343.5,0.001]
[1770061553594,0.0011,2344.2,2343.5,1.06773645]
[1770061553595,0.91615225,2344.0,2343.5,1.06773645]
[1770061553802,1.13834138,2344.2,2343.5,1.06773645]
[1770061553803,0.0011,2344.2,2343.5,1.06773645]
[1770061553991,0.0011,2344.2,2343.5,0.001]
[1770061553992,0.91605775,2344.1,2343.5,0.001]
[1770061554193,1.0665984,2343.9,2343.5,0.001]
[1770061554516,0.91593134,2343.8,2343.2,0.001]
[1770061554714,13.32114491,2343.9,2343.2,0.001]
[1770061554920,13.39178789,2343.4,2342.5,0.001]
[1770061555100,12.25454651,2343.2,2342.5,0.001]
[1770061555303,0.9159272,2343.1,2342.5,0.001]
[1770061557933,1.06699741,2343.1,2342.5,0.001]
[1770061560234,14.21548691,2343.2,2342.5,0.001]
[1770061560614,5.91020565,2343.7,2342.8,12.30186645]
[1770061560920,4.77296427,2343.7,2342.9,1.23189725]
[1770061561107,4.77294829,2343.7,2342.9,1.23189725]
[1770061561512,3.70625222,2343.7,2342.9,13.5337637]
[1770061561706,4.77294515,2343.7,2342.9,1.23189725]
[1770061562006,13.16657489,2343.6,2342.5,0.001]
[1770061562228,0.91202838,2343.5,2342.5,0.001]
[1770061562427,12.25454651,2343.2,2342.5,0.001]
[1770061562633,12.25454651,2343.2,2342.2,0.0008032]
[1770061562634,13.14954651,2343.2,2342.2,0.0008032]
[1770061562818,12.25454651,2343.0,2342.0,0.001]
[1770061563023,14.59598599,2342.9,2342.0,0.001]
[1770061563227,0.91114608,2342.8,2342.0,0.001]
[1770061563426,13.68483991,2342.9,2342.0,0.001]
[1770061563634,1.4302934,2342.9,2342.0,0.001]
[1770061563842,13.14954651,2343.2,2342.0,0.001]
[1770061564003,14.16743904,2343.1,2342.0,0.001]
[1770061564203,1.91289253,2343.0,2342.0,0.001]
[1770061564526,12.25454651,2343.1,2342.0,0.001]
[1770061564527,1.0022693,2342.9,2342.0,0.001]
[1770061565018,2.06934864,2342.9,2342.0,0.001]
[1770061565214,1.0022693,2342.9,2342.0,14.06701923]
[1770061565535,2.06932682,2342.9,2342.2,0.001]
[1770061565842,1.0816093,2342.8,2342.2,0.001]
[1770061566009,1.0816093,2342.8,2342.0,0.001]
[1770061566611,13.33615581,2342.8,2342.0,0.001]
[1770061566816,13.69486784,2342.7,2342.0,0.001]
[1770061567011,0.895,2342.6,2342.0,0.001]
[1770061567442,1.06723585,2342.5,2342.0,0.001]
[1770061570438,13.32178236,2342.5,2342.0,0.001]
[1770061571424,1.06723585,2342.5,2342.0,0.001]
[1770061572350,1.83438208,2342.5,2342.0,0.001]
[1770061573221,12.25454651,2342.4,2341.9,0.001]
[1770061573631,1.06732698,2342.3,2341.9,0.001]
[1770061573942,16.52385445,2342.4,2341.9,0.001]
[1770061573943,1.06731183,2342.4,2341.9,0.001]
[1770061576446,0.76714623,2342.5,2341.9,0.001]
[1770061576662,1.83438598,2342.5,2341.9,0.001]
[1770061576826,0.69982684,2342.4,2341.9,0.001]
[1770061577646,0.69982684,2342.4,2342.1,0.001]
[1770061577863,1.76713527,2342.4,2342.1,0.001]
[1770061579454,0.0011,2342.5,2342.1,0.001]
[1770061579676,1.06833692,2342.5,2342.1,0.001]
[1770061580777,14.01518114,2342.5,2341.6,0.001]
[1770061580938,12.94684422,2342.3,2341.5,0.001]
[1770061581273,2.29733273,2342.2,2341.5,1.06865912]
[1770061581478,0.895,2342.1,2341.5,1.06865912]
[1770061581781,0.895,2342.1,2341.5,0.001]
[1770061582250,1.96244942,2342.1,2341.5,0.001]
[1770061583452,14.90929364,2342.1,2341.4,0.000804]
[1770061583678,12.94684422,2341.9,2341.4,0.000804]
[1770061583842,0.91429883,2341.8,2341.4,0.000804]
[1770061584038,2.52870781,2342.2,2341.4,12.25083431]
[1770061584263,1.98185307,2342.1,2341.5,1.06769165]
[1770061584476,0.91442812,2342.0,2341.4,13.31853557]
[1770061584774,0.91442812,2342.0,2341.4,13.31856834]
[1770061585963,1.06741847,2342.1,2341.4,13.31856834]
[1770061586160,0.0011,2342.5,2341.9,12.25003031]
[1770061586476,0.0011,2342.5,2342.0,1.22671364]
[1770061586843,0.0011,2342.5,2342.0,2.29417517]
[1770061587251,0.0011,2342.5,2342.0,1.22671364]
[1770061587748,0.0011,2342.5,2341.7,4.27032613]
[1770061587946,0.0011,2342.5,2341.8,1.06752644]
[1770061588141,0.0011,2342.5,2341.7,1.06756487]
[1770061588377,0.0011,2342.5,2341.6,12.25003031]
[1770061588552,1.14287354,2342.4,2341.5,1.06766446]
[1770061588757,1.65096492,2342.3,2341.6,1.06763664]
[1770061588953,2.03897354,2342.5,2341.6,13.31766695]
[1770061589757,2.03897354,2342.5,2341.6,13.31866695]
[1770061590266,0.0011,2341.9,2341.6,13.31866695]
[1770061591082,0.8961,2342.5,2341.7,12.25003031]
[1770061591382,1.9633362,2342.5,2341.7,12.25003031]
[1770061591550,1.9633362,2342.5,2341.8,1.3318667]
[1770061592404,0.8961,2342.5,2341.8,2.39940471]
[1770061592560,0.8961,2342.5,2341.8,14.64943502]
[1770061592755,1.96333646,2342.5,2341.8,2.39940471]
[1770061592951,1.96333646,2342.5,2341.6,1.0686247]
[1770061593167,1.96333646,2342.5,2341.6,0.001]
[1770061593168,1.14287354,2342.4,2341.6,0.001]
[1770061593365,1.14287354,2341.9,2341.4,0.001804]
[1770061593604,1.14287354,2341.7,2341.4,0.001804]
[1770061593911,1.14287354,2341.8,2341.4,0.001804]
[1770061594197,1.65085492,2341.7,2341.4,0.001804]
[1770061594594,1.06764605,2341.6,2341.4,0.001804]
[1770061595100,2.71849163,2341.7,2341.4,0.001804]
[1770061598103,0.91658724,2341.6,2341.4,0.001804]
[1770061598399,0.91658724,2341.5,2341.4,0.001804]
[1770061599909,2.71849163,2341.7,2341.4,0.001804]
[1770061600120,0.91623549,2341.6,2341.4,0.001804]
[1770061600273,2.71849163,2341.7,2341.4,0.001804]
[1770061600475,0.91608198,2341.6,2341.4,0.001804]
[1770061600672,2.71849163,2341.7,2341.4,0.001804]
[1770061600875,0.91602555,2341.6,2341.4,0.001804]
[1770061601075,2.71849163,2341.7,2341.4,0.001804]
[1770061601386,1.98367939,2341.6,2341.4,0.001804]
[1770061601586,1.06764804,2341.6,2341.4,0.001804]
[1770061602780,0.91599314,2341.5,2341.0,0.001]
[1770061602978,0.91599314,2341.4,2341.0,0.001]
[1770061603181,0.0011,2341.5,2341.0,0.001]
[1770061603479,0.91597217,2341.4,2341.0,0.001]
[1770061603680,0.0011,2341.5,2341.0,0.001]
[1770061603883,0.91578453,2341.4,2341.0,0.001]
[1770061604081,2.19075973,2341.5,2341.0,0.001]
[1770061604281,0.91578475,2341.4,2341.0,0.001]
[1770061604510,2.19075973,2341.5,2341.0,0.001]
[1770061604701,0.91564305,2341.4,2341.0,0.001]
[1770061604902,2.19075973,2341.5,2341.0,0.001]
[1770061605102,1.32284093,2341.4,2341.0,0.001]
[1770061605309,0.40719727,2341.4,2341.0,0.001]
[1770061606189,1.06873438,2341.7,2341.1,12.25003031]
[1770061606397,0.91552839,2341.6,2341.1,12.25003031]
[1770061606605,1.06873438,2341.7,2341.1,12.25003031]
[1770061606913,0.91549645,2341.6,2341.0,0.001]
[1770061607095,0.91549645,2341.5,2341.0,0.001]
[1770061607297,0.82945439,2341.6,2341.0,0.001]
[1770061607615,0.91512897,2341.5,2341.0,0.001]
[1770061607817,1.06769165,2341.5,2341.0,0.001]
[1770061609007,1.06769165,2341.5,2341.0,0.001]
[1770061609822,1.89713504,2341.6,2341.0,0.001]
[1770061610000,0.91474772,2341.5,2341.0,0.001]
[1770061610185,1.89713504,2341.6,2341.0,0.001]
[1770061610390,2.91775074,2341.5,2341.0,0.001]
[1770061610622,2.00303589,2341.5,2341.0,0.001]
[1770061611832,1.06773725,2341.4,2341.0,0.001]
[1770061612492,12.75385068,2341.2,2340.4,0.001]
[1770061612741,12.75385068,2340.8,2340.2,0.001]
[1770061613027,1.80937313,2340.7,2340.2,0.001]
[1770061613194,0.895,2340.7,2340.2,1.06928453]
[1770061613387,0.895,2340.7,2340.4,1.06817708]
[1770061613586,0.895,2341.0,2340.2,5.08354189]
[1770061613802,1.96295424,2341.0,2340.3,1.06820533]
[1770061614241,0.895,2341.0,2340.3,1.06820533]
[1770061614393,1.96292356,2341.0,2340.3,1.06820533]
[1770061614728,1.96292356,2341.0,2340.4,0.61516781]
[1770061614887,1.96292356,2341.0,2340.5,0.001]
[1770061615390,13.66756482,2340.9,2340.5,0.001]
[1770061615589,0.91325195,2340.8,2340.3,0.001]
[1770061615817,0.91325195,2340.7,2340.3,0.001]
[1770061616024,1.06808121,2340.7,2340.3,0.001]
[1770061616521,2.65421831,2340.8,2340.3,0.001]
[1770061617143,0.91344614,2340.7,2340.3,0.001]
[1770061617433,2.65421831,2340.8,2340.3,0.001]
[1770061617635,2.88158253,2340.7,2340.3,0.001]
[1770061617794,0.91352377,2340.6,2340.0,2.75140735]
[1770061617997,0.91352377,2340.6,2339.4,1.06864502]
[1770061617998,12.75385068,2340.4,2339.4,1.06864502]
[1770061618329,13.66737445,2340.3,2339.3,1.06967776]
[1770061618513,13.66737445,2340.2,2339.3,1.06967776]
[1770061618713,1.36673745,2340.1,2339.3,1.06967776]
[1770061619019,1.36673745,2340.1,2339.3,0.001]
[1770061619020,14.5622586,2340.0,2339.3,0.001]
[1770061619327,12.75385068,2339.8,2338.5,1.06905659]
[1770061619490,12.75385068,2339.6,2338.5,1.06905659]
[1770061619692,0.896,2339.5,2338.5,1.06905659]
[1770061619896,1.06865008,2339.4,2338.3,1.06992846]
[1770061620096,0.91065532,2339.3,2338.3,1.06994864]
[1770061620309,0.91064806,2339.2,2338.4,1.06910171]
[1770061620528,15.18748583,2339.4,2338.4,1.06910171]
[1770061620837,0.91060594,2339.3,2338.4,13.97700676]
[1770061621019,1.36498507,2339.4,2338.5,14.73333597]
[1770061621216,1.9646358,2339.5,2338.5,14.73333597]
[1770061621217,14.71848648,2339.5,2338.5,1.82542557]
[1770061621398,13.66482254,2339.4,2338.3,1.0699435]
[1770061621723,13.66482254,2339.3,2338.3,0.0008008]
[1770061621926,1.06896994,2338.7,2337.7,1.06941537]
[1770061622092,1.14496486,2339.0,2337.7,13.97732577]
[1770061622093,0.896,2338.6,2337.7,13.97732577]
[1770061622293,1.06874145,2339.2,2337.9,12.9079104]
[1770061622526,0.896,2339.1,2337.9,12.9079104]
[1770061623935,1.96481431,2339.1,2338.0,1.06928999]
[1770061624239,3.86417689,2339.1,2338.1,14.73334644]
[1770061625038,2.79536258,2339.1,2338.1,14.73334644]
[1770061625337,0.896,2339.1,2338.1,14.73334644]
[1770061625504,1.06857522,2339.6,2338.1,14.73334644]
[1770061625838,2.66135519,2339.9,2338.6,12.9079104]
[1770061626014,1.06840702,2340.0,2338.8,12.9079104]
[1770061626947,13.8222577,2340.0,2338.7,1.06896994]
[1770061627903,13.8222577,2340.0,2338.1,14.73334644]
[1770061628137,12.75385068,2339.8,2338.3,1.06913212]
[1770061628436,12.75385068,2339.6,2338.3,4.27648929]
[1770061628639,0.896,2339.5,2338.5,1.06905093]
[1770061628832,1.36498507,2339.4,2338.9,0.001]
[1770061629206,1.36498507,2339.4,2338.6,0.001]
[1770061629207,14.11883575,2339.4,2338.6,0.001]
[1770061629645,1.36498507,2339.4,2338.6,0.001]
[1770061629821,12.75385068,2339.4,2338.6,0.001]
[1770061630015,12.75385068,2339.4,2337.7,0.001]
[1770061630016,12.75385068,2339.0,2337.7,0.001]
[1770061630217,13.64985068,2338.9,2337.9,1.06932081]
[1770061630534,13.64985068,2338.9,2337.9,13.97721734]
[1770061630535,0.896,2338.9,2337.9,13.97721734]
[1770061630750,0.896,2338.9,2338.0,1.82546916]
[1770061630951,13.64985068,2338.9,2337.7,0.001]
[1770061632223,12.75385068,2338.7,2337.7,0.001]
[1770061633842,1.06892423,2338.8,2337.7,0.001]
[1770061634159,1.06892423,2338.8,2337.7,12.9089104]
[1770061634334,0.62406212,2338.7,2337.7,14.19988152]
[1770061634859,0.62406212,2338.7,2337.7,1.29197112]
[1770061635030,0.62406212,2338.7,2337.7,0.001]
[1770061636656,1.06901565,2338.6,2337.7,0.001]
[1770061637942,13.82286633,2338.6,2337.7,0.001]
[1770061639658,12.75385068,2338.3,2337.3,0.3108815]
[1770061639827,12.75385068,2338.3,2337.1,1.06966569]
[1770061639828,0.897,2338.2,2337.1,1.06966569]
[1770061640155,0.897,2338.2,2337.2,0.534854]
[1770061640156,1.36508507,2338.1,2337.2,0.534854]
[1770061640356,1.36508507,2338.1,2337.1,12.75356376]
[1770061640759,1.06928999,2338.0,2337.1,12.75356376]
[1770061641061,1.06928999,2338.0,2336.8,0.0008008]
[1770061641264,13.13132312,2338.0,2336.8,0.0008008]
[1770061641559,12.06203313,2337.6,2336.8,0.0008008]
[1770061641762,12.95903313,2337.5,2336.8,0.0008008]
[1770061642660,1.06956447,2337.4,2336.8,0.0008008]
[1770061642832,13.1315976,2337.4,2336.7,0.001]
[1770061643162,1.83068555,2337.3,2336.7,0.001]
[1770061644262,12.06203313,2337.1,2336.1,0.0008016]
[1770061644961,13.13178066,2337.0,2336.1,0.0008016]
[1770061645145,15.47841451,2336.9,2336.1,0.0008016]
[1770061645464,12.06203313,2336.8,2336.1,0.0008016]
[1770061646741,3.41638138,2336.9,2336.1,0.0008016]
[1770061646938,1.06983909,2336.8,2336.1,0.0008016]
[1770061650359,1.96682993,2336.9,2336.1,0.0008016]
[1770061650674,1.96681675,2336.9,2336.1,12.75436536]
[1770061651169,1.96681675,2336.9,2336.1,0.0008016]
[1770061651378,14.02884988,2336.9,2336.1,0.0008016]
[1770061651739,12.06203313,2336.7,2335.4,0.0008008]
[1770061651945,14.23931161,2336.6,2335.4,12.75436456]
[1770061652156,12.06203313,2336.6,2335.4,12.75436456]
[1770061652677,12.06203313,2336.6,2335.4,0.0008008]
[1770061653047,1.06997646,2336.5,2335.4,0.0008008]
[1770061653356,13.13200959,2336.5,2335.4,0.0008008]
[1770061653578,1.74119154,2336.4,2335.4,0.0008008]
[1770061653763,0.897,2336.3,2335.4,0.0008008]
[1770061654375,12.95903313,2336.3,2335.4,0.0008008]
[1770061654969,1.07011386,2336.2,2336.0,0.001]
[1770061655153,1.07011386,2336.2,2335.4,0.0008008]
[1770061655356,0.62475693,2336.1,2335.4,0.0008008]
[1770061656066,1.96707865,2336.3,2335.4,12.75436456]
[1770061656779,0.897,2336.3,2335.4,12.75436456]
[1770061656981,1.07000427,2336.5,2335.6,12.75356376]
[1770061657169,4.27917326,2337.1,2335.6,14.56592812]
[1770061657370,5.17617326,2337.1,2335.9,12.75356376]
[1770061657781,4.27917326,2337.1,2335.9,12.75356376]
[1770061658398,1.96772133,2337.3,2336.4,12.75356376]
[1770061658684,0.8981,2337.3,2336.5,14.02892014]
[1770061658875,1.07071569,2337.3,2336.5,12.75356376]
[1770061659071,0.0011,2337.3,2336.6,1.06993066]
[1770061659271,0.0011,2337.3,2336.6,13.82349442]
[1770061659478,0.0011,2337.3,2336.7,1.81032933]
[1770061660089,0.0011,2337.3,2336.7,14.56389309]
[1770061660384,8.23384996,2337.9,2336.7,14.56389309]
[1770061660385,1.06919852,2338.3,2336.9,12.75356376]
[1770061660684,1.06910708,2338.4,2337.2,12.75356376]
[1770061660883,1.06910708,2338.4,2337.2,14.02892014]
[1770061661058,0.0019016,2338.5,2337.3,13.82317399]
[1770061661548,12.06393473,2338.5,2337.3,12.75356376]
[1770061661755,12.06393473,2338.5,2337.2,15.09854877]
[1770061661964,1.20639347,2338.4,2337.3,1.93772157]
[1770061662687,1.20639347,2338.4,2337.3,14.69128533]
[1770061663500,1.0691528,2338.3,2337.3,15.76087097]
[1770061665188,2.27553464,2338.4,2337.4,12.77066984]
[1770061665356,4.27820584,2338.5,2337.7,13.84005803]
[1770061665357,0.0019016,2338.5,2337.7,13.84005803]
[1770061665556,0.51942218,2338.5,2337.7,15.55181688]
[1770061666163,0.51942218,2338.5,2337.7,15.5347108]
[1770061666758,0.51942218,2338.5,2337.7,1.71175885]
[1770061666958,0.51942218,2338.5,2337.6,13.82303173]
[1770061667282,1.96597453,2338.7,2337.8,12.75356376]
[1770061667460,1.06883283,2339.0,2338.0,12.75356376]
[1770061667667,1.06881028,2339.1,2338.0,12.75356376]
[1770061667994,4.27461939,2339.4,2338.0,12.75356376]
[1770061667995,4.27472155,2339.4,2338.5,12.75356376]
[1770061668170,4.27472155,2339.4,2338.6,1.27535638]
[1770061668171,2.09915822,2339.4,2338.6,1.27535638]
[1770061668370,0.0011,2339.3,2338.6,14.02892014]
[1770061669363,4.27409585,2339.7,2338.7,12.52524739]
[1770061669694,0.0011,2339.8,2338.7,12.52524739]
[1770061669898,1.0682193,2340.4,2339.2,11.92309009]
[1770061670066,1.0682193,2340.4,2338.8,1.38006038]
[1770061670259,14.74301392,2340.4,2338.9,11.92309009]
[1770061670462,0.90490007,2340.3,2338.9,11.92309009]
[1770061670674,14.74301392,2340.4,2338.9,11.92309009]
[1770061670895,1.9652193,2340.4,2338.9,11.92309009]
[1770061671099,0.62378702,2340.3,2339.1,11.92309009]
[1770061671690,1.06828476,2340.2,2339.2,1.06874145]
[1770061671889,1.06828476,2340.2,2339.2,12.99183154]
[1770061672073,0.62378702,2340.3,2339.2,12.99183154]
[1770061672270,0.62378702,2340.3,2339.4,11.92309009]
[1770061673969,0.0008008,2340.7,2340.0,13.64960996]
[1770061674160,0.0008008,2340.7,2339.8,1.06844003]
[1770061674376,0.0008008,2340.7,2339.8,12.99153012]
[1770061674571,0.0011,2341.0,2339.8,12.99153012]
[1770061674773,0.0011,2341.0,2340.0,11.92309009]
[1770061675070,1.06892846,2341.2,2339.9,0.01710608]
[1770061675071,0.0011,2341.2,2340.5,0.01710608]
[1770061675265,0.0011,2341.2,2340.3,11.92309009]
[1770061675471,0.0011,2341.2,2339.9,13.3560498]
[1770061675672,0.0011,2341.2,2340.0,11.94019617]
[1770061676095,0.0011,2341.2,2340.1,1.08543649]
[1770061676271,0.0011,2341.2,2340.1,13.00852658]
[1770061676473,0.65577114,2341.2,2340.4,0.01710608]
[1770061677567,1.12184354,2341.3,2340.4,0.01710608]
[1770061677802,0.0011,2341.4,2340.7,11.92309009]
[1770061678397,0.0011,2341.4,2340.8,1.06801093]
[1770061679698,4.27154963,2341.7,2340.8,1.06801093]
[1770061679699,0.0011,2341.7,2341.1,11.92309009]
[1770061680472,0.0011,2341.7,2340.9,1.06793701]
[1770061680698,0.0011,2341.7,2340.4,12.99126255]
[1770061681003,0.0011,2341.2,2340.8,1.06798388]
[1770061681310,0.0011,2341.2,2340.7,1.06802582]
[1770061681481,0.0011,2341.2,2340.4,13.22221635]
[1770061681806,0.0011,2341.2,2340.7,1.06805218]
[1770061682105,0.0011,2341.2,2340.5,1.06811162]
[1770061682297,0.0011,2341.2,2340.6,1.06809703]